[Event "Austrian Women Bundesliga 2023-24"]
[Site "Austria"]
[Date "2024.03.23"]
[Round "5.13"]
[White "Mihelic, Vesna"]
[Black "Mandukhai, Myagmarsuren"]
[Result "1-0"]
[ECO "C50"]
[WhiteElo "2140"]
[BlackElo "2083"]
[Annotator "RC"]
[PlyCount "99"]
[EventDate "2023.11.21"]
[EventType "team-tourn"]
[EventCountry "AUT"]
[SourceTitle "playchess.com"]
[Source "ChessBase"]
[SourceQuality "1"]
[TimeControl "40/5400+30:1800+30"]

1. e4 {[%emt 0:00:03]} e5 {[%emt 0:00:09]} 2. Nf3 {[%emt 0:00:06]} Nc6 {[%emt 0:00:09]} 3. Bc4 {[%emt 0:00:06]} Bc5 {[%emt 0:00:05]} 4. d3 {[%emt 0:00:07]} Nf6 {[%emt 0:00:07]} 5. Nc3 {[%emt 0:00:33]} a6 {[%emt 0:00:05]} 6. Be3 {[%emt 0:00:11]} Bxe3 {[%emt 0:00:10]} 7. fxe3 {[%emt 0:00:06]} d6 {[%emt 0:00:02]} 8. a4 {[%emt 0:03:55]} Ne7 {[%emt 0:02:33]} 9. O-O {[%emt 0:03:33]} Ng6 {[%emt 0:01:49]} 10. d4 {[%emt 0:10:28]} O-O {[%emt 0:02:03]} 11. dxe5 {[%emt 0:02:55]} Ng4 {[%emt 0:02:29]} 12. Qe1 {[%emt 0:11:41]} N4xe5 {[%emt 0:02:39]} 13. Bb3 {[%emt 0:00:47]} Bg4 {[%emt 0:08:16]} 14. Qg3 {[%emt 0:04:26]} c6 {[%emt 0:12:28]} 15. Nd4 {[%emt 0:10:12]} h5 {[%emt 0:26:53]} 16. h3 {[%emt 0:06:32]} h4 {[%emt 0:01:20]} 17. Qf2 {[%emt 0:02:56]} Bd7 {[%emt 0:11:13]} 18. Nf5 {[%emt 0:03:19]} Qg5 {[%emt 0:01:02]} 19. Rad1 {[%emt 0:06:50]} d5 {[%emt 0:03:04]} 20. exd5 {[%emt 0:04:31]} Bxf5 {[%emt 0:00:20]} 21. Qxf5 {[%emt 0:00:02]} Qxe3+ {[%emt 0:00:08]} 22. Kh1 {[%emt 0:00:11]} Ne7 {[%emt 0:06:35]} 23. Qf2 {[%emt 0:13:52]} Qxf2 {[%emt 0:01:25]} 24. Rxf2 {[%emt 0:00:02]} cxd5 {[%emt 0:00:49]} 25. Nxd5 {[%emt 0:01:11]} N7g6 {[%emt 0:02:21]} 26. Nf4 {[%emt 0:04:05]} Kh7 {[%emt 0:00:23]} 27. Nxg6 {[%emt 0:02:12]} Kxg6 {[%emt 0:00:22]} 28. Rd4 {[%emt 0:02:21]} Kg5 {[%emt 0:03:04]} 29. Rb4 {[%emt 0:01:14]} Rab8 {[%emt 0:01:25]} 30. Rff4 {[%emt 0:04:26]} Rh8 {[%emt 0:00:04]} 31. Rfe4 {[%emt 0:00:54]} f6 {[%emt 0:00:10]} 32. a5 {[%emt 0:00:15]} g6 {[%emt 0:00:59]} 33. c3 {[%emt 0:00:42]} Rh7 {[%emt 0:00:38]} 34. Kh2 {[%emt 0:00:40]} Rd8 {[%emt 0:00:56]} 35. Rbd4 {[%emt 0:00:52]} Re8 {[%emt 0:04:16]} 36. Rd6 {[%emt 0:01:38]} f5 {[%emt 0:00:34]} 37. Red4 {[%emt 0:00:02]} Rhe7 {[%emt 0:00:16]} 38. Bd5 {[%emt 0:00:39]} Kh5 {[%emt 0:03:37]} 39. Rb6 {[%emt 0:00:13]} Ng4+ {[%emt 0:02:07]} 40. hxg4+ {[%emt 0:00:26]} fxg4 {[%emt 0:00:05]} 41. Rbb4 {[%emt 0:06:49]} Rd8 {[%emt 0:05:44]} 42. Bb3 {[%emt 0:06:31]} Rxd4 {[%emt 0:14:56]} 43. Rxd4 {[%emt 0:00:09]} g3+ {[%emt 0:00:24]} 44. Kh3 {[%emt 0:00:09]} g5 {[%emt 0:00:13]} 45. Bd1+ {[%emt 0:00:18]} Kg6 {[%emt 0:00:58]} 46. Kg4 {[%emt 0:01:04]} Re6 {[%emt 0:02:31]} 47. Bf3 {[%emt 0:00:54]} b6 {[%emt 0:01:37]} 48. Rd5 {[%emt 0:00:21]} bxa5 {[%emt 0:00:21]} 49. Rxg5+ {[%emt 0:00:09]} Kf6 {[%emt 0:00:04]} 50. Rxa5 {[%emt 0:00:17]} 1-0

[Event "Austrian Women Bundesliga 2023-24"]
[Site "Austria"]
[Date "2024.03.23"]
[Round "5.14"]
[White "Deak-Sala, Emilia"]
[Black "Goeschl, Ortrun"]
[Result "1-0"]
[ECO "B00"]
[WhiteElo "2014"]
[BlackElo "1952"]
[Annotator "NA RC"]
[PlyCount "81"]
[EventDate "2023.11.21"]
[EventType "team-tourn"]
[EventCountry "AUT"]
[SourceTitle "playchess.com"]
[Source "ChessBase"]
[SourceQuality "1"]
[TimeControl "40/5400+30:1800+30"]

1. e4 {[%emt 0:00:03]} Nc6 {[%emt 0:00:07]} 2. Nf3 {[%emt 0:00:04]} d6 {[%emt 0:00:42]} 3. c3 {[%emt 0:02:07]} f5 {[%emt 0:03:32]} 4. exf5 {[%emt 0:06:01]} Bxf5 {[%emt 0:00:11]} 5. Nh4 {[%emt 0:02:13]} Qd7 {[%emt 0:12:41]} 6. Nxf5 {[%emt 0:00:43]} Qxf5 {[%emt 0:00:02]} 7. d4 {[%emt 0:00:30]} Qe4+ {[%emt 0:01:25]} 8. Be3 {[%emt 0:01:28]} Nf6 {[%emt 0:00:57]} 9. Nd2 {[%emt 0:00:53]} Qe6 {[%emt 0:08:28]} 10. Qa4 {[%emt 0:06:34]} Qd7 {[%emt 0:07:31]} 11. Be2 {[%emt 0:16:27]} e6 {[%emt 0:10:06]} 12. O-O {[%emt 0:03:25]} Be7 {[%emt 0:01:21]} 13. Rae1 {[%emt 0:05:20]} O-O {[%emt 0:02:28]} 14. Bg5 {[%emt 0:02:57]} Nd5 {[%emt 0:09:20]} 15. Bg4 {[%emt 0:07:44]} Bxg5 {[%emt 0:02:05]} 16. Bxe6+ {[%emt 0:01:22]} Qxe6 {[%emt 0:00:10]} 17. Rxe6 {[%emt 0:00:04]} Nf4 {[%emt 0:05:35]} 18. Re3 {[%emt 0:04:29]} Kh8 {[%emt 0:00:45]} 19. Nf3 {[%emt 0:05:55]} Bh6 {[%emt 0:04:11]} 20. Qb5 {[%emt 0:10:36]} Rab8 {[%emt 0:05:57]} 21. d5 {[%emt 0:04:03]} a6 {[%emt 0:14:07]} 22. Qc4 {[%emt 0:03:07]} Na7 {[%emt 0:00:43]} 23. a4 {[%emt 0:03:05]} c6 {[%emt 0:02:46]} 24. Qd4 {[%emt 0:02:09]} c5 {[%emt 0:00:10]} 25. Qe4 {[%emt 0:00:53]} Ng6 {[%emt 0:01:25]} 26. Ree1 {[%emt 0:01:12]} b5 {[%emt 0:00:56]} 27. a5 {[%emt 0:00:09]} Rbd8 {[%emt 0:01:40]} 28. g3 {[%emt 0:00:39]} Nc8 {[%emt 0:01:04]} 29. h4 {[%emt 0:01:12]} Nge7 {[%emt 0:01:10]} 30. Kg2 {[%emt 0:02:44]} g6 {[%emt 0:02:08]} 31. Ng5 {[%emt 0:02:10]} Bxg5 {[%emt 0:00:47]} 32. hxg5 {[%emt 0:00:07]} Rf5 33. f4 {[%emt 0:01:18]} Rxd5 {[%emt 0:00:47]} 34. g4 {[%emt 0:01:24]} Rd2+ {[%emt 0:00:19]} 35. Rf2 {[%emt 0:00:04]} Rxf2+ {[%emt 0:00:25]} 36. Kxf2 {[%emt 0:00:04]} Rf8 {[%emt 0:00:31]} 37. Kg3 {[%emt 0:00:21]} Kg7 {[%emt 0:01:21]} 38. Qb7 {[%emt 0:00:58]} Rf7 {[%emt 0:00:05]} 39. Qxa6 {[%emt 0:00:25]} Nd5 {[%emt 0:00:24]} 40. Qxc8 {[%emt 0:00:30]} Nxf4 {[%emt 0:00:04]} 41. Re8 {[%emt 0:30:35]} 1-0

[Event "Austrian Women Bundesliga 2023-24"]
[Site "Austria"]
[Date "2024.03.23"]
[Round "5.15"]
[White "Tscharnuter, Alexandra"]
[Black "Stadlinger, Lea"]
[Result "1-0"]
[ECO "C60"]
[WhiteElo "1842"]
[BlackElo "1936"]
[Annotator "NA RC"]
[PlyCount "65"]
[EventDate "2023.11.21"]
[EventType "team-tourn"]
[EventCountry "AUT"]
[SourceTitle "playchess.com"]
[Source "ChessBase"]
[SourceQuality "1"]
[TimeControl "40/5400+30:1800+30"]

1. e4 {[%emt 0:00:04]} e5 {[%emt 0:00:06]} 2. Nf3 {[%emt 0:00:05]} Nc6 {[%emt 0:00:06]} 3. Bb5 {[%emt 0:00:05]} Nge7 {[%emt 0:00:06]} 4. d4 {[%emt 0:03:07]} Nxd4 {[%emt 0:21:01]} 5. Nxd4 {[%emt 0:00:30]} exd4 {[%emt 0:00:07]} 6. Qxd4 {[%emt 0:01:51]} c6 {[%emt 0:16:50]} 7. Bd3 {[%emt 0:09:19]} d5 {[%emt 0:04:21]} 8. O-O {[%emt 0:05:07]} Be6 {[%emt 0:01:17]} 9. e5 {[%emt 0:16:40]} Qc7 {[%emt 0:07:16]} 10. f4 {[%emt 0:05:41]} c5 {[%emt 0:07:41]} 11. Bb5+ {[%emt 0:06:34]} Nc6 {[%emt 0:07:18]} 12. Qa4 {[%emt 0:07:36]} Bd7 {[%emt 0:00:49]} 13. Nc3 {[%emt 0:02:54]} a6 {[%emt 0:10:12]} 14. Nxd5 {[%emt 0:09:50]} Qd8 {[%emt 0:00:09]} 15. Re1 {[%emt 0:10:02]} axb5 {[%emt 0:00:59]} 16. Qxa8 {[%emt 0:00:31]} Qxa8 {[%emt 0:06:14]} 17. Nc7+ {[%emt 0:00:05]} Kd8 {[%emt 0:00:12]} 18. Nxa8 {[%emt 0:00:06]} Nd4 {[%emt 0:00:09]} 19. Rd1 {[%emt 0:02:42]} Nxc2 {[%emt 0:00:45]} 20. Rb1 {[%emt 0:04:02]} c4 {[%emt 0:00:14]} 21. Rd2 {[%emt 0:01:38]} Bc5+ {[%emt 0:00:19]} 22. Kf1 {[%emt 0:01:20]} Ne3+ {[%emt 0:02:35]} 23. Ke2 {[%emt 0:00:12]} Nxg2 {[%emt 0:00:23]} 24. Rd5 {[%emt 0:00:25]} b6 {[%emt 0:07:39]} 25. b4 {[%emt 0:00:25]} cxb3 {[%emt 0:00:06]} 26. Rxb3 {[%emt 0:02:50]} Kc8 {[%emt 0:01:44]} 27. Rc3 {[%emt 0:00:31]} Bg4+ {[%emt 0:04:06]} 28. Kf1 {[%emt 0:00:35]} Nxf4 {[%emt 0:00:53]} 29. Bxf4 {[%emt 0:00:16]} Kb7 {[%emt 0:00:11]} 30. Nxb6 {[%emt 0:00:41]} Bxb6 {[%emt 0:00:05]} 31. Rxb5 {[%emt 0:00:07]} Bd7 {[%emt 0:01:29]} 32. Rb2 {[%emt 0:00:30]} Ka7 {[%emt 0:00:33]} 33. Ra3+ {[%emt 0:00:09]} 1-0

[Event "Austrian Women Bundesliga 2023-24"]
[Site "Austria"]
[Date "2024.03.23"]
[Round "5.16"]
[White "Marinovic, Sara"]
[Black "Sommer, Milena"]
[Result "1-0"]
[ECO "C45"]
[WhiteElo "1776"]
[BlackElo "1765"]
[Annotator "NA RC"]
[PlyCount "81"]
[EventDate "2023.11.21"]
[EventType "team-tourn"]
[EventCountry "AUT"]
[SourceTitle "playchess.com"]
[Source "ChessBase"]
[SourceQuality "1"]
[TimeControl "40/5400+30:1800+30"]

1. e4 {[%emt 0:00:03]} e5 {[%emt 0:00:04]} 2. Nf3 {[%emt 0:00:05]} Nc6 {[%emt 0:00:08]} 3. d4 {[%emt 0:00:06]} exd4 {[%emt 0:01:17]} 4. Nxd4 {[%emt 0:00:11]} Bc5 {[%emt 0:05:05]} 5. Be3 {[%emt 0:00:16]} Qf6 {[%emt 0:05:24]} 6. c3 {[%emt 0:00:16]} Nge7 {[%emt 0:01:05]} 7. Bc4 {[%emt 0:00:14]} O-O {[%emt 0:03:07]} 8. O-O {[%emt 0:01:31]} Rd8 {[%emt 0:04:33]} 9. Nf5 {[%emt 0:23:14]} Bxe3 {[%emt 0:15:29]} 10. Nxe3 {[%emt 0:03:36]} d6 {[%emt 0:04:31]} 11. Na3 {[%emt 0:08:58]} a6 {[%emt 0:15:23]} 12. f4 {[%emt 0:18:35]} Be6 {[%emt 0:10:25]} 13. Nd5 {[%emt 0:05:40]} Bxd5 {[%emt 0:06:41]} 14. exd5 {[%emt 0:00:08]} Na5 {[%emt 0:03:37]} 15. Be2 {[%emt 0:01:03]} b5 {[%emt 0:02:35]} 16. Qd3 {[%emt 0:07:48]} Re8 {[%emt 0:03:52]} 17. Rae1 {[%emt 0:05:06]} Qf5 {[%emt 0:03:19]} 18. Qxf5 {[%emt 0:03:09]} Nxf5 {[%emt 0:00:05]} 19. Bf3 {[%emt 0:05:57]} Ne3 {[%emt 0:03:54]} 20. Rf2 {[%emt 0:00:43]} Nec4 {[%emt 0:00:48]} 21. Rxe8+ {[%emt 0:01:28]} Rxe8 {[%emt 0:00:05]} 22. Nxc4 {[%emt 0:00:22]} Nxc4 23. b3 {[%emt 0:00:52]} Nb6 {[%emt 0:03:39]} 24. Kf1 {[%emt 0:00:25]} f6 {[%emt 0:01:12]} 25. Re2 {[%emt 0:02:54]} Rxe2 {[%emt 0:00:15]} 26. Kxe2 {[%emt 0:00:00]} a5 {[%emt 0:00:49]} 27. Kd3 {[%emt 0:02:32]} Kf7 {[%emt 0:02:20]} 28. Kd4 {[%emt 0:00:35]} Ke7 {[%emt 0:02:19]} 29. Bg4 {[%emt 0:01:44]} g6 {[%emt 0:00:44]} 30. b4 {[%emt 0:04:07]} axb4 {[%emt 0:01:42]} 31. cxb4 {[%emt 0:00:07]} Na4 {[%emt 0:00:35]} 32. Be2 {[%emt 0:00:42]} f5 {[%emt 0:00:45]} 33. Bxb5 {[%emt 0:00:06]} Nb6 {[%emt 0:00:09]} 34. a4 {[%emt 0:00:32]} Kd8 {[%emt 0:00:34]} 35. a5 {[%emt 0:00:30]} Nc8 {[%emt 0:00:26]} 36. Ba6 {[%emt 0:00:33]} Na7 {[%emt 0:00:08]} 37. b5 {[%emt 0:00:16]} Kd7 {[%emt 0:01:16]} 38. b6 {[%emt 0:00:50]} cxb6 {[%emt 0:00:07]} 39. axb6 {[%emt 0:00:18]} Nb5+ {[%emt 0:00:58]} 40. Bxb5+ {[%emt 0:00:09]} Kc8 {[%emt 0:00:16]} 41. Be8 {[%emt 0:30:57]} 1-0

[Event "Austrian Women Bundesliga 2023-24"]
[Site "Austria"]
[Date "2024.03.23"]
[Round "5.17"]
[White "Unuk, Laura"]
[Black "Danielian, Elina"]
[Result "1/2-1/2"]
[ECO "E46"]
[WhiteElo "2341"]
[BlackElo "2396"]
[Annotator "TA"]
[PlyCount "68"]
[EventDate "2023.11.21"]
[EventType "team-tourn"]
[EventCountry "AUT"]
[SourceTitle "playchess.com"]
[Source "ChessBase"]
[SourceQuality "1"]
[TimeControl "40/5400+30:1800+30"]

{[%evp 9,68,-8,7,6,11,19,18,12,0,3,7,-43,-36,-58,-25,-23,-42,-40,-37,-68,-2,-7,0,-35,-8,-14,-6,-10,-24,-25,-15,-68,-30,-71,-59,-58,-52,-57,-61,-60,0,0,0,0,0,0,14,16,58,44,52,17,16,35,25,0,20,22,35,8,10]} 1. d4 {[%emt 0:00:06]} Nf6 {[%emt 0:00:06]} 2. c4 {[%emt 0:00:06]} e6 {[%emt 0:00:03]} 3. Nc3 {[%emt 0:00:44]} Bb4 {[%emt 0:00:15]} 4. e3 {[%emt 0:00:11]} O-O {[%emt 0:00:10]} 5. Bd2 {[%emt 0:00:36]} c5 {[%emt 0:01:16]} 6. a3 {[%emt 0:01:15]} Bxc3 {[%emt 0:00:04]} 7. Bxc3 {[%emt 0:00:05]} Ne4 {[%emt 0:00:48]} 8. Ne2 {[%emt 0:01:11]} b6 {[%emt 0:00:28]} 9. d5 {[%emt 0:01:27]} Ba6 {[%emt 0:01:32]} 10. f3 {[%emt 0:03:05]} ({White should play} 10. b3 $11) 10... Nxc3 $15 {[%emt 0:00:07]} 11. Nxc3 {[%emt 0:00:05] [#]} Bxc4 $1 {[%emt 0:01:54]} 12. Bxc4 {[%emt 0:00:08] And now 0-0 would win.} Qh4+ {[%emt 0:00:03]} 13. g3 {[%emt 0:00:07]} Qxc4 {[%emt 0:00:04]} 14. h4 {[%emt 0:00:05][%cal Bh2h4,Bh4h5,Bh5h6][%mdl 32]} Qa6 {[%emt 0:11:44]} (14... Na6 $15 15. h5 exd5 16. Qxd5 Qxd5 17. Nxd5 Rfe8) 15. h5 $11 {[%emt 0:05:35]} h6 {[%emt 0:07:07]} 16. Kf2 {[%emt 0:41:32]} Qc8 {[%emt 0:14:43]} 17. g4 {[%emt 0:04:45][%cal Og4g5]} Na6 {[%emt 0:05:36]} 18. g5 {[%emt 0:06:36]} hxg5 {[%emt 0:00:31]} 19. h6 {[%emt 0:03:27] Threatens to win with hxg7.} g6 {[%emt 0:00:14]} 20. Qd3 {[%emt 0:11:08]} (20. dxe6 $11 dxe6 21. Ne4) 20... Nc7 {[%emt 0:16:26]} 21. Rag1 {[%emt 0:00:35]} Qd8 {[%emt 0:04:25]} 22. d6 {[%emt 0:05:07] [#]} Nd5 {[%emt 0:00:48]} 23. Nxd5 {[%emt 0:01:57]} exd5 {[%emt 0:00:04]} 24. Qc3 {[%emt 0:00:21] [#] Prevents Qf6.} (24. Qxd5 Qf6 25. Rxg5 Rad8 $18) 24... d4 $1 {[%emt 0:03:21]} 25. exd4 {[%emt 0:00:30]} (25. h7+ Kh8) 25... Qf6 {[%emt 0:00:36][%csl LRd4,LRd6]} 26. dxc5 {[%emt 0:00:36]} Qxc3 {[%emt 0:00:06]} 27. bxc3 {[%emt 0:00:04]} bxc5 {[%emt 0:07:38]} 28. Rxg5 {[%emt 0:00:24][%cal Oc3c4][%mdl 4096] Endgame. KRR-KRR} Rab8 {[%emt 0:01:27]} 29. Rxc5 {[%emt 0:01:39] aiming for Rc7.} Rb2+ $1 {[%emt 0:00:13]} 30. Kg3 {[%emt 0:04:03] Hoping for Rc7.} Rd2 $1 {[%emt 0:00:05]} 31. Rc7 {[%emt 0:01:15][%csl LRa7,LRd7]} Rxd6 {[%emt 0:00:04]} 32. Rxa7 {[%emt 0:00:34]} Rd3 {[%emt 0:00:08]} 33. h7+ {[%emt 0:01:48]} Kg7 {[%emt 0:01:30]} 34. c4 {[%emt 0:00:34]} Rh8 {[%emt 0:03:32] Weighted Error Value: White=0.11 (very precise) /Black=0.14 (very precise) .  Mistake:       	White=2     	Black=2      Inaccurate:     	White=5     	Black=3      OK:         	White=13    	Black=9      Best:        	White=1     	Black=4      Strong:       	---       	Black=2      Brilliant:      	---       	Black=2} 1/2-1/2

[Event "Austrian Women Bundesliga 2023-24"]
[Site "Austria"]
[Date "2024.03.23"]
[Round "5.18"]
[White "Osmak, Yuliia"]
[Black "Hrescak, Ivana"]
[Result "1-0"]
[ECO "E73"]
[WhiteElo "2452"]
[BlackElo "2089"]
[Annotator "RC"]
[PlyCount "91"]
[EventDate "2023.11.21"]
[EventType "team-tourn"]
[EventCountry "AUT"]
[SourceTitle "playchess.com"]
[Source "ChessBase"]
[SourceQuality "1"]
[TimeControl "40/5400+30:1800+30"]

1. d4 {[%emt 0:00:03]} Nf6 {[%emt 0:00:08]} 2. c4 {[%emt 0:00:04]} g6 {[%emt 0:00:06]} 3. Nc3 {[%emt 0:00:03]} Bg7 {[%emt 0:00:04]} 4. e4 {[%emt 0:00:04]} d6 {[%emt 0:00:05]} 5. Be2 {[%emt 0:00:44]} O-O {[%emt 0:00:42]} 6. Be3 {[%emt 0:00:12]} c5 {[%emt 0:04:18]} 7. d5 {[%emt 0:00:21]} e6 {[%emt 0:00:32]} 8. Nf3 {[%emt 0:00:12]} exd5 {[%emt 0:02:26]} 9. cxd5 {[%emt 0:02:04]} Qa5 {[%emt 0:04:00]} 10. Nd2 {[%emt 0:16:23]} Bd7 {[%emt 0:02:48]} 11. Nc4 {[%emt 0:09:53]} Qc7 {[%emt 0:06:50]} 12. e5 {[%emt 0:08:34]} dxe5 {[%emt 0:09:47]} 13. d6 {[%emt 0:00:04]} Qc8 {[%emt 0:00:29]} 14. Nxe5 {[%emt 0:00:27]} Re8 {[%emt 0:01:45]} 15. Nxd7 {[%emt 0:01:13]} Nbxd7 {[%emt 0:07:12]} 16. O-O {[%emt 0:00:13]} Ne5 {[%emt 0:06:56]} 17. Nb5 {[%emt 0:10:44]} Rd8 {[%emt 0:05:10]} 18. Nc7 {[%emt 0:02:09]} Rb8 {[%emt 0:00:09]} 19. Bxc5 {[%emt 0:00:12]} b6 {[%emt 0:00:11]} 20. Ba3 {[%emt 0:00:57]} Ne4 {[%emt 0:01:51]} 21. Rc1 {[%emt 0:05:43]} Qf5 {[%emt 0:02:36]} 22. f4 {[%emt 0:03:33]} Nd7 {[%emt 0:01:10]} 23. Nd5 {[%emt 0:00:45]} Qe6 {[%emt 0:01:47]} 24. Ne7+ {[%emt 0:05:25]} Kh8 {[%emt 0:00:44]} 25. Nc6 {[%emt 0:01:21]} Ndc5 {[%emt 0:01:39]} 26. Nxb8 {[%emt 0:00:42]} Rxb8 {[%emt 0:01:36]} 27. Bc4 {[%emt 0:09:44]} Qxd6 {[%emt 0:00:44]} 28. Qxd6 {[%emt 0:00:33]} Nxd6 {[%emt 0:00:02]} 29. Rfd1 {[%emt 0:01:01]} Nxc4 {[%emt 0:02:25]} 30. Rxc4 {[%emt 0:00:11]} Bf8 {[%emt 0:00:26]} 31. Bxc5 {[%emt 0:01:26]} Bxc5+ {[%emt 0:00:07]} 32. Kf1 {[%emt 0:00:04]} a5 {[%emt 0:00:49]} 33. Rd7 {[%emt 0:00:19]} Kg7 {[%emt 0:01:26]} 34. a3 {[%emt 0:00:18]} Kf8 {[%emt 0:02:55]} 35. b4 {[%emt 0:00:46]} Ke8 {[%emt 0:01:07]} 36. Ra7 {[%emt 0:02:12]} axb4 {[%emt 0:00:14]} 37. axb4 {[%emt 0:00:05]} Bd6 {[%emt 0:00:23]} 38. Rd4 {[%emt 0:00:50]} Rd8 {[%emt 0:00:59]} 39. Re4+ {[%emt 0:00:48]} Kf8 {[%emt 0:00:07]} 40. Rb7 {[%emt 0:00:09]} Re8 {[%emt 0:02:48]} 41. Rd4 {[%emt 0:31:14]} Be7 {[%emt 0:33:20]} 42. Rxb6 {[%emt 0:01:11]} Ra8 {[%emt 0:00:05]} 43. Rb7 {[%emt 0:01:10]} Ra1+ {[%emt 0:01:00]} 44. Ke2 {[%emt 0:00:05]} Ra2+ {[%emt 0:00:03]} 45. Rd2 {[%emt 0:00:24]} Ra4 {[%emt 0:00:31]} 46. Rdd7 {[%emt 0:00:10]} 1-0

[Event "Austrian Women Bundesliga 2023-24"]
[Site "Austria"]
[Date "2024.03.23"]
[Round "5.19"]
[White "Vidic, Teja"]
[Black "Ushenina, Anna"]
[Result "1/2-1/2"]
[ECO "C47"]
[WhiteElo "2125"]
[BlackElo "2415"]
[Annotator "TA"]
[PlyCount "66"]
[EventDate "2023.11.21"]
[EventType "team-tourn"]
[EventCountry "AUT"]
[SourceTitle "playchess.com"]
[Source "ChessBase"]
[SourceQuality "1"]
[TimeControl "40/5400+30:1800+30"]

{[%evp 17,66,0,12,6,7,0,8,4,11,11,21,0,22,4,14,12,25,15,20,20,26,15,18,0,45,39,31,31,33,25,52,64,57,64,57,54,51,52,58,40,45,47,49,36,31,31,37,9,12,14,30]} 1. e4 {[%emt 0:00:03]} e5 {[%emt 0:00:21]} 2. Nf3 {[%emt 0:00:06]} Nc6 {[%emt 0:00:08]} 3. Nc3 {[%emt 0:00:07]} Nf6 {[%emt 0:00:17]} 4. d4 {[%emt 0:00:06]} exd4 {[%emt 0:03:35]} 5. Nxd4 {[%emt 0:00:07]} Bb4 {[%emt 0:00:08]} 6. Nxc6 {[%emt 0:00:10]} bxc6 {[%emt 0:00:05]} 7. Bd3 {[%emt 0:00:06]} d5 {[%emt 0:00:16]} 8. exd5 {[%emt 0:00:29]} O-O {[%emt 0:00:05][%cal Bh8f8,Bf8e8,Be8e5,Be5d5][%mdl 32]} 9. O-O {[%emt 0:00:13]} cxd5 {[%emt 0:00:02]} 10. h3 {[%emt 0:00:14]} c6 {[%emt 0:12:33]} 11. Qf3 {[%emt 0:00:10]} Rb8 {[%emt 0:01:26]} 12. Bf4 {[%emt 0:01:28]} Bd6 {[%emt 0:00:54]} 13. b3 {[%emt 0:00:18]} Re8 {[%emt 0:10:50]} 14. Ne2 {[%emt 0:10:38]} Be5 {[%emt 0:19:40]} 15. Rad1 {[%emt 0:04:52]} Bd7 {[%emt 0:13:09]} 16. c4 {[%emt 0:07:56]} Qa5 {[%emt 0:00:38]} 17. Bxe5 {[%emt 0:12:59]} Rxe5 {[%emt 0:00:06]} 18. Qf4 {[%emt 0:00:05]} Rbe8 {[%emt 0:02:53]} 19. Qd2 {[%emt 0:00:27]} Qxd2 {[%emt 0:17:11]} 20. Rxd2 {[%emt 0:00:08]} c5 {[%emt 0:00:42]} 21. cxd5 {[%emt 0:02:44]} Rxd5 {[%emt 0:00:20]} 22. Rfd1 {[%emt 0:05:26][%cal Od3h7]} Kf8 {[%emt 0:01:34][%cal Od5d3]} 23. Kf1 {[%emt 0:11:06]} h6 {[%emt 0:06:44]} 24. Nc3 {[%emt 0:01:49]} Rd4 {[%emt 0:01:05]} 25. Bc4 {[%emt 0:05:57] Es drohte Nd5} Rxd2 {[%emt 0:00:36]} 26. Rxd2 {[%emt 0:00:05]} Bc6 {[%emt 0:04:57]} 27. f3 {[%emt 0:06:48]} Rc8 {[%emt 0:01:52]} 28. Nb5 {[%emt 0:02:36]} Bxb5 {[%emt 0:00:42]} 29. Bxb5 {[%emt 0:00:07]} Ke7 {[%emt 0:00:39]} 30. Bc4 {[%emt 0:04:47]} Rc7 {[%emt 0:00:22]} 31. Kf2 {[%emt 0:00:52]} Nd7 {[%emt 0:00:38]} 32. Ke3 {[%emt 0:09:53]} Nb6 {[%emt 0:00:17]} 33. Rc2 {[%emt 0:03:46]} Rc6 {[%emt 0:00:52] Gewichteter Fehlerwert: Weiß=0.06 (makellos) /Schwarz=0.07 (makellos) .  Ungenau:       	Weiß=1     	Schwarz=2     OK:         	Weiß=8     	Schwarz=7     Bester:       	---       	Schwarz=1} 1/2-1/2

[Event "Austrian Women Bundesliga 2023-24"]
[Site "Austria"]
[Date "2024.03.23"]
[Round "5.20"]
[White "Matnadze Bujiashvili, Ann"]
[Black "Kolba, Anastasiya"]
[Result "1-0"]
[ECO "D02"]
[WhiteElo "2359"]
[BlackElo "2031"]
[Annotator "RC"]
[PlyCount "65"]
[EventDate "2023.11.21"]
[EventType "team-tourn"]
[EventCountry "AUT"]
[SourceTitle "playchess.com"]
[Source "ChessBase"]
[SourceQuality "1"]
[TimeControl "40/5400+30:1800+30"]

1. d4 {[%emt 0:00:04]} d5 {[%emt 0:00:40]} 2. Nf3 {[%emt 0:00:08]} Nf6 {[%emt 0:00:41]} 3. g3 {[%emt 0:00:06]} c6 {[%emt 0:00:56]} 4. Bg2 {[%emt 0:00:04]} e6 {[%emt 0:00:23]} 5. O-O {[%emt 0:00:07]} Bd6 {[%emt 0:00:38]} 6. c4 {[%emt 0:00:06]} Nbd7 {[%emt 0:02:00]} 7. Qb3 {[%emt 0:00:12]} O-O 8. Nc3 {[%emt 0:00:35]} dxc4 {[%emt 0:09:46]} 9. Qxc4 {[%emt 0:00:02]} e5 {[%emt 0:01:06]} 10. Rd1 {[%emt 0:01:52]} Qc7 {[%emt 0:06:01]} 11. Bg5 {[%emt 0:08:19]} h6 {[%emt 0:06:25]} 12. Bxf6 {[%emt 0:06:07]} Nxf6 {[%emt 0:00:42]} 13. dxe5 {[%emt 0:01:16]} Bxe5 {[%emt 0:00:35]} 14. Nxe5 {[%emt 0:00:36]} Qxe5 {[%emt 0:00:23]} 15. Qb4 {[%emt 0:00:11]} Rb8 {[%emt 0:03:03]} 16. Qa3 {[%emt 0:05:48]} a6 {[%emt 0:02:45]} 17. Qd6 {[%emt 0:00:19]} Qxd6 {[%emt 0:02:27]} 18. Rxd6 {[%emt 0:00:02]} Re8 {[%emt 0:00:48]} 19. Rad1 {[%emt 0:00:24]} Bg4 {[%emt 0:03:51]} 20. f3 {[%emt 0:00:20]} Be6 {[%emt 0:02:22]} 21. e4 {[%emt 0:01:24]} Re7 {[%emt 0:05:33]} 22. f4 {[%emt 0:03:35]} Ne8 {[%emt 0:04:09]} 23. R6d4 {[%emt 0:07:24]} f6 {[%emt 0:04:12]} 24. Bf3 {[%emt 0:07:13]} Kf8 {[%emt 0:05:07]} 25. a4 {[%emt 0:02:49]} a5 {[%emt 0:02:46]} 26. Bh5 {[%emt 0:03:48]} Bf7 {[%emt 0:01:35]} 27. Bg4 {[%emt 0:04:18]} Be6 {[%emt 0:00:34]} 28. Bxe6 {[%emt 0:02:02]} Rxe6 {[%emt 0:00:21]} 29. f5 {[%emt 0:01:31]} Re7 {[%emt 0:02:43]} 30. Ne2 {[%emt 0:00:15]} g5 {[%emt 0:03:28]} 31. fxg6 {[%emt 0:00:32]} f5 {[%emt 0:00:54]} 32. Rd7 {[%emt 0:10:41]} fxe4 {[%emt 0:07:20]} 33. Rf1+ {[%emt 0:00:58]} 1-0